fUST/lending_fUST_20240226
["ID","MTS","AMOUNT","RATE_DAILY","PERIOD"]
[315214932,1708943443354,-5529.96122929,0.000197,2]
[315214933,1708943443363,-592.7475228,0.00019714,2]
[315214934,1708943443372,-747.05323267,0.00019714,2]
[315214935,1708943443381,-500.0,0.00019723,2]
[315214936,1708943443390,-640.03091446,0.00019724,2]
[315214937,1708943443398,-500.0,0.00019725,2]
[315214938,1708943443407,-500.0,0.00019725,2]
[315214939,1708943443416,-500.0,0.00019725,2]
[315214940,1708943443425,-200.0,0.00019726,2]
[315214941,1708943443434,-1580.94,0.00019726,2]
[315214942,1708943443443,-500.0,0.00019726,2]
[315214943,1708943443453,-619.68506579,0.00019726,2]
[315214944,1708943443462,-500.0,0.00019726,2]
[315214945,1708943443476,-500.0,0.00019726,2]
[315214946,1708943443486,-508.64002911,0.00019726,2]
[315214947,1708943443496,-531.08,0.00019726,2]
[315214948,1708943443505,-500.0,0.00019726,2]
[315214949,1708943443515,-607.75992688,0.00019726,2]
[315214950,1708943443524,-500.0,0.00019726,2]
[315214951,1708943443533,-504.12794573,0.00019726,2]
[315214952,1708943443541,-450.65957018,0.00019726,2]
[315214953,1708943443550,-500.0,0.00019726,2]
[315214954,1708943443560,-500.0,0.00019726,2]
[315214955,1708943443568,-153.98960683,0.00019726,2]
[315214956,1708943443578,-500.0,0.00019726,2]
[315214957,1708943443587,-406.99210958,0.00019726,2]
[315214958,1708943443595,-500.0,0.00019726,2]
[315214959,1708943443604,-693.68,0.00019726,2]
[315214960,1708943443613,-507.80796114,0.00019726,2]
[315214961,1708943443622,-500.0,0.00019726,2]
[315214962,1708943443632,-500.0,0.00019726,2]
[315214963,1708943443642,-810.1601,0.00019726,2]
[315214964,1708943443651,-810.1601,0.00019726,2]
[315214965,1708943443660,-810.1601,0.00019726,2]
[315214966,1708943443669,-810.1601,0.00019726,2]
[315214967,1708943443678,-477.02525582,0.00019726,2]
[315214968,1708943443687,-607.19,0.00019726,2]
[315214969,1708943443696,-1353.55,0.00019726,2]
[315214970,1708943443706,-1388.60783733,0.00019726,2]
[315214971,1708943443725,-1886.29216267,0.00019726,2]
[315214972,1708943443734,-1391.35,0.00019726,2]
[315214973,1708943443744,-773.65,0.00019726,2]
[315214974,1708943443753,-1461.3,0.00019726,2]
[315214975,1708943443762,-500.0,0.00019726,2]
[315214976,1708943443771,-500.0,0.00019726,2]
[315214977,1708943443780,-86.65088075,0.00019726,2]
[315214978,1708943443848,-64.34911925,0.00019726,2]
[315214979,1708943443857,-151.0,0.00019726,2]
[315214980,1708943443866,-269.505607,0.00019726,2]
[315214981,1708943443876,-500.0,0.00019726,2]
[315214982,1708943443885,-500.0,0.00019726,2]
[315214983,1708943443894,-536.17501023,0.00019726,2]
[315214984,1708943443903,-500.0,0.00019726,2]
[315214985,1708943443912,-500.0,0.00019726,2]
[315214986,1708943443922,-500.0,0.00019726,2]
[315214987,1708943443931,-500.0,0.00019726,2]
[315214988,1708943444030,-1794.71,0.00019726,2]
[315214989,1708943444039,-298.70806404,0.00019726,2]
[315214990,1708943444051,-342.82906328,0.00019726,2]
[315214991,1708943444060,-413.35093672,0.00019726,2]
[315214992,1708943444072,-165.29906328,0.00019726,2]
[315214993,1708943444081,-500.0,0.00019726,2]
[315214994,1708943444091,-1457.65,0.00019726,2]
[315214995,1708943444101,-500.0,0.00019726,2]
[315214996,1708943444111,-502.04463839,0.00019726,2]
[315214997,1708943444120,-500.0,0.00019726,2]
[315214998,1708943444130,-317.02712957,0.00019726,2]
[315214999,1708943444138,-61.72794676,0.00019726,2]
[315215015,1708943444757,-441.60091176,0.00019726,2]
[315215016,1708943444766,-500.0,0.00019726,2]
[315215017,1708943444776,-500.0,0.00019726,2]
[315215020,1708943444785,-10968.23,0.00019726,2]
[315215021,1708943444794,-22037.8,0.00019726,2]
[315215022,1708943444803,-500.0,0.00019726,2]
[315215023,1708943444812,-500.0,0.00019726,2]
[315215024,1708943444821,-910.9,0.00019726,2]
[315215025,1708943444830,-505.63704845,0.00019726,2]
[315215026,1708943444838,-4231.45,0.00019726,2]
[315215027,1708943444848,-500.0,0.00019726,2]
[315215028,1708943444857,-500.0,0.00019726,2]
[315215029,1708943444866,-500.0,0.00019726,2]
[315215030,1708943444876,-500.0,0.00019726,2]
[315215031,1708943444885,-500.0,0.00019726,2]
[315215032,1708943444894,-1754.31,0.00019726,2]
[315215033,1708943444903,-1241.54,0.00019726,2]
[315215034,1708943444912,-500.0,0.00019726,2]
[315215035,1708943444921,-500.0,0.00019726,2]
[315215036,1708943444930,-500.0,0.00019726,2]
[315215037,1708943444939,-500.0,0.00019726,2]
[315215038,1708943444948,-1279.79,0.00019726,2]
[315215039,1708943444958,-500.0,0.00019726,2]
[315215040,1708943444967,-7967.99,0.00019726,2]
[315215041,1708943444976,-656.18,0.00019726,2]
[315215042,1708943444985,-2214.02,0.00019726,2]
[315215043,1708943444996,-926.97,0.00019726,2]
[315215044,1708943445005,-810.17,0.00019726,2]
[315215045,1708943445015,-3780.8,0.00019726,2]
[315215046,1708943445024,-22364.04,0.00019726,2]
[315215047,1708943445033,-1674.37,0.00019726,2]
[315215048,1708943445042,-500.0,0.00019726,2]
[315215049,1708943445051,-500.0,0.00019726,2]
[315215050,1708943445060,-2666.11,0.00019726,2]
[315215051,1708943445069,-2728.15,0.00019726,2]
[315215052,1708943445078,-500.0,0.00019726,2]
[315215053,1708943445087,-1239.95,0.00019726,2]
[315215054,1708943445096,-500.0,0.00019726,2]
[315215055,1708943445105,-2557.56,0.00019726,2]
[315215056,1708943445114,-2058.29,0.00019726,2]
[315215057,1708943445124,-500.0,0.00019726,2]
[315215058,1708943445133,-500.0,0.00019726,2]
[315215059,1708943445143,-500.0,0.00019726,2]
[315215060,1708943445153,-2229.23,0.00019726,2]
[315215061,1708943445162,-500.0,0.00019726,2]
[315215062,1708943445172,-500.0,0.00019726,2]
[315215063,1708943445181,-2069.57,0.00019726,2]
[315215064,1708943445190,-500.0,0.00019726,2]
[315215065,1708943445200,-500.0,0.00019726,2]
[315215066,1708943445209,-668.95,0.00019726,2]
[315215067,1708943445219,-500.0,0.00019726,2]
[315215068,1708943445228,-500.0,0.00019726,2]
[315215069,1708943445237,-850.07,0.00019726,2]
[315215070,1708943445248,-500.0,0.00019726,2]
[315215071,1708943445257,-502.36151926,0.00019726,2]
[315215072,1708943445266,-500.0,0.00019726,2]
[315215073,1708943445275,-500.0,0.00019767,2]
[315215074,1708943445285,-300.0,0.00019777,2]
[315215075,1708943445294,-3384.81215471,0.00019887,2]
[315215076,1708943445303,-8230.24916882,0.0001989,2]
[315215077,1708943445312,-300.0,0.0001991,2]
[315215078,1708943445321,-205.517,0.00019954,2]
[315215079,1708943445330,-5337.30879984,0.00019975,2]
[315215080,1708943445339,-14885.27956934,0.00019977,2]
[315215081,1708943445348,-289.88358592,0.00019998,2]
[315215082,1708943445357,-500.0,0.00019999,2]
[315215083,1708943445366,-500.0,0.00019999,2]
[315215084,1708943445375,-500.0,0.00019999,2]
[315215086,1708943445385,-500.0,0.00019999,2]
[315215088,1708943445394,-500.0,0.00019999,2]
[315215089,1708943445403,-500.0,0.00019999,2]
[315215090,1708943445413,-500.0,0.00019999,2]
[315215091,1708943445422,-500.0,0.00019999,2]
[315215092,1708943445431,-500.0,0.00019999,2]
[315215093,1708943445440,-500.0,0.00019999,2]
[315215094,1708943445449,-500.0,0.00019999,2]
[315215095,1708943445458,-500.0,0.00019999,2]
[315215097,1708943445469,-500.0,0.00019999,2]
[315215099,1708943445478,-500.0,0.00019999,2]
[315215101,1708943445486,-500.0,0.00019999,2]
[315215103,1708943445497,-256.44210122,0.00019999,2]
[315215104,1708943445507,-3384.81215469,0.0002,2]
[315215106,1708943445516,-200.0,0.0002,2]
[315215108,1708943445525,-1580.94,0.0002,2]
[315215110,1708943445534,-500.0,0.0002,2]
[315215113,1708943445544,-500.0,0.0002,2]
[315215115,1708943445553,-531.08,0.0002,2]
[315215116,1708943445564,-356.05453121,0.0002,2]
[315215118,1708943445574,-533.98724685,0.0002,2]
[315215121,1708943445584,-500.0,0.0002,2]
[315215122,1708943445593,-500.0,0.0002,2]
[315215124,1708943445602,-500.0,0.0002,2]
[315215125,1708943445612,-693.68,0.0002,2]
[315215126,1708943445621,-503.11212196,0.0002,2]
[315215127,1708943445630,-500.0,0.0002,2]
[315215128,1708943445640,-810.1601,0.0002,2]
[315215129,1708943445650,-810.1601,0.0002,2]
[315215130,1708943445660,-810.1601,0.0002,2]
[315215131,1708943445670,-810.1601,0.0002,2]
[315215132,1708943445680,-607.19,0.0002,2]
[315215134,1708943445689,-1353.55,0.0002,2]
[315215136,1708943445698,-3274.9,0.0002,2]
[315215137,1708943445708,-1391.35,0.0002,2]
[315215139,1708943445717,-773.65,0.0002,2]
[315215141,1708943445726,-1461.3,0.0002,2]
[315215143,1708943445735,-500.0,0.0002,2]
[315215145,1708943445746,-500.0,0.0002,2]
[315215146,1708943445754,-151.0,0.0002,2]
[315215147,1708943445762,-151.0,0.0002,2]
[315215148,1708943445769,-500.0,0.0002,2]
[315215149,1708943445778,-152.68202281,0.0002,2]
[315215150,1708943445787,-151.50000152,0.0002,2]
[315215151,1708943445796,-500.0,0.0002,2]
[315215152,1708943445805,-500.0,0.0002,2]
[315215153,1708943445814,-500.0,0.0002,2]
[315215154,1708943445823,-500.0,0.0002,2]
[315215155,1708943445832,-1794.71,0.0002,2]
[315215156,1708943445842,-578.65,0.0002,2]
[315215157,1708943445851,-500.0,0.0002,2]
[315215158,1708943445860,-1457.65,0.0002,2]
[315215159,1708943445868,-500.0,0.0002,2]
[315215160,1708943445877,-500.0,0.0002,2]
[315215161,1708943445887,-503.59164722,0.0002,2]
[315215162,1708943445896,-500.0,0.0002,2]
[315215163,1708943445905,-10968.23,0.0002,2]
[315215164,1708943445914,-22037.8,0.0002,2]
[315215165,1708943445924,-325.74621711,0.0002,2]
[315215166,1708943445933,-502.2090075,0.0002,2]
[315215167,1708943445942,-910.9,0.0002,2]
[315215168,1708943445951,-4231.45,0.0002,2]
[315215169,1708943445961,-500.0,0.0002,2]
[315215170,1708943445970,-224.38369584,0.0002,2]
[315215172,1708943445979,-500.0,0.0002,2]
[315215174,1708943445988,-500.0,0.0002,2]
[315215176,1708943445997,-500.0,0.0002,2]
[315215177,1708943446007,-1754.31,0.0002,2]
[315215178,1708943446016,-1241.54,0.0002,2]
[315215180,1708943446026,-500.0,0.0002,2]
[315215181,1708943446035,-500.0,0.0002,2]
[315215183,1708943446046,-500.0,0.0002,2]
[315215184,1708943446055,-500.0,0.0002,2]
[315215185,1708943446064,-1279.79,0.0002,2]
[315215186,1708943446073,-500.0,0.0002,2]
[315215187,1708943446082,-7967.99,0.0002,2]
[315215188,1708943446091,-656.18,0.0002,2]
[315215189,1708943446100,-2214.02,0.0002,2]
[315215190,1708943446109,-926.97,0.0002,2]
[315215191,1708943446118,-810.17,0.0002,2]
[315215192,1708943446128,-91721.32019447,0.0002,4]
[315215193,1708943446136,-3780.8,0.0002,2]
[315215194,1708943446145,-22364.04,0.0002,2]
[315215195,1708943446155,-1674.37,0.0002,2]
[315215196,1708943446163,-500.0,0.0002,2]
[315215197,1708943446173,-500.0,0.0002,2]
[315215198,1708943446182,-2666.11,0.0002,2]
[315215199,1708943446191,-2728.15,0.0002,2]
[315215200,1708943446200,-500.0,0.0002,2]
[315215201,1708943446209,-1239.95,0.0002,2]
[315215202,1708943446218,-500.0,0.0002,2]
[315215203,1708943446227,-2557.56,0.0002,2]
[315215204,1708943446236,-2058.29,0.0002,2]
[315215205,1708943446246,-500.0,0.0002,2]
[315215206,1708943446254,-195.15697486,0.0002,2]
[315215207,1708943446264,-500.0,0.0002,2]
[315215208,1708943446273,-2229.23,0.0002,2]
[315215209,1708943446282,-500.0,0.0002,2]
[315215210,1708943446291,-500.0,0.0002,2]
[315215211,1708943446301,-2069.57,0.0002,2]
[315215212,1708943446310,-500.0,0.0002,2]
[315215213,1708943446319,-500.0,0.0002,2]
[315215214,1708943446327,-668.95,0.0002,2]
[315215215,1708943446336,-500.0,0.0002,2]
[315215216,1708943446346,-500.0,0.0002,2]
[315215217,1708943446356,-850.07,0.0002,2]
[315215218,1708943446368,-500.0,0.0002,2]
[315215219,1708943446377,-300.0,0.00020042,2]
[315215220,1708943446386,-153.0,0.00020055,2]
[315215221,1708943446395,-153.0,0.00020055,2]
[315215222,1708943446404,-153.0,0.00020055,2]
[315215223,1708943446413,-166.666666,0.00020076,2]
[315215224,1708943446422,-175.5,0.000201,2]
[315215225,1708943446431,-150.84577735,0.000201,2]
[315215226,1708943446440,-3384.81215469,0.00020112,2]
[315215227,1708943446449,-500.0,0.00020168,2]
[315215228,1708943446458,-466.69,0.00020168,2]
[315215229,1708943446470,-1000.0,0.00020169,2]
[315215230,1708943446479,-1000.0,0.00020169,2]
[315215231,1708943446487,-1000.0,0.00020169,2]
[315215232,1708943446497,-1000.0,0.00020169,2]
[315215233,1708943446506,-1000.0,0.00020169,2]
[315215234,1708943446515,-260.43693577,0.00020169,2]
[315215235,1708943446524,-1000.0,0.00020169,2]
[315215236,1708943446533,-1000.0,0.00020169,2]
[315215237,1708943446543,-1000.0,0.00020169,2]
[315215238,1708943446552,-1000.0,0.00020169,2]
[315215239,1708943446561,-836.00768305,0.00020169,2]
[315215240,1708943446570,-1000.0,0.00020169,2]
[315215241,1708943446579,-1000.0,0.00020169,2]
[315215242,1708943446587,-1000.0,0.00020169,2]
[315215243,1708943446597,-1000.0,0.00020169,2]
[315215244,1708943446606,-1000.0,0.00020169,2]
[315215245,1708943446615,-2373.60735735,0.00020169,2]
[315215246,1708943446624,-1000.0,0.00020169,2]
[315215247,1708943446633,-1000.0,0.00020169,2]
[315215248,1708943446642,-3673.87443066,0.00020169,2]
[315215249,1708943446652,-1000.0,0.00020169,2]
[315215250,1708943446660,-1000.0,0.00020169,2]
[315215251,1708943446669,-1000.0,0.00020169,2]
[315215252,1708943446678,-2833.80384274,0.00020169,2]
[315215253,1708943446687,-1000.0,0.00020169,2]
[315215254,1708943446696,-1000.0,0.00020169,2]
[315215255,1708943446706,-810.1601,0.00020169,2]
[315215256,1708943446715,-810.1601,0.00020169,2]
[315215257,1708943446724,-151.0,0.00020169,2]
[315215258,1708943446820,-3326.04133956,0.0002017,2]
[315215259,1708943446830,-1000.0,0.0002017,2]
[315215260,1708943446840,-1000.0,0.0002017,2]
[315215261,1708943446849,-4653.38683371,0.0002017,2]
[315215262,1708943446859,-1000.0,0.0002017,2]
[315215263,1708943446869,-1000.0,0.0002017,2]
[315215264,1708943446878,-2170.5866272,0.0002017,2]
[315215265,1708943446888,-1000.0,0.0002017,2]
[315215266,1708943446897,-695.64624655,0.0002017,2]
[315215267,1708943446906,-364.83377095,0.0002017,2]
[315215268,1708943446916,-1000.0,0.0002017,2]
[315215269,1708943446925,-156.35733041,0.0002017,2]
[315215270,1708943446935,-1000.0,0.0002017,2]
[315215271,1708943446944,-1000.0,0.0002017,2]
[315215272,1708943446953,-1000.0,0.0002017,2]
[315215273,1708943446963,-748.78461589,0.0002017,2]
[315215274,1708943446972,-565.46532071,0.0002017,2]
[315215275,1708943446981,-151.27399692,0.0002017,2]
[315215276,1708943446991,-1000.0,0.0002017,2]
[315215277,1708943447000,-1000.0,0.0002017,2]
[315215278,1708943447009,-1000.0,0.0002017,2]
[315215279,1708943447020,-1000.0,0.0002017,2]
[315215280,1708943447030,-500.0,0.00020174,2]
[315215281,1708943447040,-500.0,0.00020174,2]
[315215282,1708943447050,-500.0,0.00020174,2]
[315215283,1708943447060,-319.09963093,0.00020174,2]
[315215284,1708943447069,-500.0,0.00020174,2]
[315215285,1708943447079,-500.0,0.00020174,2]
[315215286,1708943447088,-419.42728038,0.00020174,2]
[315215287,1708943447098,-500.0,0.00020174,2]
[315215288,1708943447108,-500.0,0.00020174,2]
[315215289,1708943447117,-500.0,0.00020174,2]
[315215290,1708943447126,-500.0,0.00020174,2]
[315215291,1708943447135,-500.0,0.00020174,2]
[315215292,1708943447145,-500.0,0.00020174,2]
[315215293,1708943447154,-500.0,0.00020174,2]
[315215294,1708943447163,-500.0,0.00020174,2]
[315215295,1708943447172,-500.0,0.00020174,2]
[315215296,1708943447183,-500.0,0.00020174,2]
[315215297,1708943447193,-500.0,0.00020174,2]
[315215298,1708943447202,-500.0,0.00020174,2]
[315215299,1708943447211,-500.0,0.00020174,2]
[315215300,1708943447220,-500.0,0.00020174,2]
[315215301,1708943447230,-500.0,0.00020174,2]
[315215302,1708943447239,-500.0,0.00020174,2]
[315215303,1708943447250,-500.0,0.00020174,2]
[315215304,1708943447259,-500.0,0.00020174,2]
[315215305,1708943447269,-500.0,0.00020174,2]
[315215306,1708943447278,-304.31517726,0.00020174,2]
[315215307,1708943447287,-600.0,0.00020174,2]
[315215308,1708943447296,-300.0,0.00020174,2]
[315215309,1708943447305,-28909.88246036,0.00020175,2]
[315215340,1708944632136,-428.36024684,0.000171,2]
[315215342,1708944632146,-4699.22949954,0.00017101,2]
[315215344,1708944632156,-653.04920302,0.00017101,2]
[315215346,1708944632165,-162.7360887,0.00017191,2]
[315215348,1708944632175,-2614.2440652,0.00017328,2]
[315215350,1708944632184,-432.459393,0.00017538,2]
[315215352,1708944632194,-153.0,0.00018878,2]
[315215354,1708944632203,-747.05323267,0.00019176,2]
[315215356,1708944632213,-592.7475228,0.00019177,2]
[315215358,1708944632224,-500.0,0.00019178,2]
[315215360,1708944632233,-500.0,0.00019178,2]
[315215362,1708944632242,-676.95,0.00019178,2]
[315215365,1708944632251,-500.0,0.00019178,2]
[315215367,1708944632260,-1240.76,0.00019178,2]
[315215369,1708944632271,-501.12566577,0.00019178,2]
[315215371,1708944632284,-510.75269847,0.00019178,2]
[315215373,1708944632294,-1005.8616059,0.00019178,2]
[315215375,1708944632303,-500.0,0.00019178,2]
[315215377,1708944632314,-500.0,0.00019178,2]
[315215379,1708944632324,-500.0,0.00019178,2]
[315215381,1708944632335,-500.0,0.00019178,2]
[315215383,1708944632345,-500.0,0.00019178,2]
[315215385,1708944632355,-500.0,0.00019178,2]
[315215387,1708944632365,-500.0,0.00019178,2]
[315215389,1708944632376,-501.65704131,0.00019178,2]
[315215391,1708944632385,-500.0,0.00019178,2]
[315215393,1708944632395,-500.0,0.00019178,2]
[315215395,1708944632405,-500.87195388,0.00019178,2]
[315215397,1708944632419,-500.0,0.00019178,2]
[315215399,1708944632428,-511.41656817,0.00019178,2]
[315215401,1708944632438,-500.00000043,0.00019178,2]
[315215403,1708944632448,-501.56333098,0.00019178,2]
[315215405,1708944632458,-500.0,0.00019178,2]
[315215407,1708944632467,-500.0,0.00019178,2]
[315215409,1708944632477,-566.42558314,0.00019178,2]
[315215411,1708944632487,-500.0,0.00019178,2]
[315215413,1708944632496,-500.0,0.00019178,2]
[315215415,1708944632506,-500.0,0.00019178,2]
[315215417,1708944632529,-500.0,0.00019178,2]
[315215419,1708944632539,-500.0,0.00019178,2]
[315215421,1708944632548,-500.0,0.00019178,2]
[315215423,1708944632557,-500.0,0.00019178,2]
[315215425,1708944632566,-500.0,0.00019178,2]
[315215427,1708944632575,-518.49613271,0.00019178,2]
[315215429,1708944632585,-530.43,0.00019178,2]
[315215431,1708944632593,-500.0,0.00019178,2]
[315215433,1708944632602,-500.49222715,0.00019178,2]
[315215435,1708944632611,-507.460159,0.00019178,2]
[315215437,1708944632621,-500.0,0.00019178,2]
[315215439,1708944632632,-500.0,0.00019178,2]
[315215440,1708944632641,-500.0,0.00019178,2]
[315215442,1708944632651,-500.0,0.00019178,2]
[315215444,1708944632661,-500.0,0.00019178,2]
[315215446,1708944632670,-500.0,0.00019178,2]
[315215448,1708944632679,-500.0,0.00019178,2]
[315215450,1708944632688,-500.0,0.00019178,2]
[315215452,1708944632697,-500.0,0.00019178,2]
[315215453,1708944632706,-500.0,0.00019178,2]
[315215455,1708944632715,-500.0,0.00019178,2]
[315215458,1708944632725,-442.6750125,0.00019178,2]
[315215460,1708944632736,-581.89,0.00019178,2]
[315215462,1708944632745,-500.0,0.00019178,2]
[315215464,1708944632755,-500.0,0.00019178,2]
[315215466,1708944632764,-3113.07,0.00019178,2]
[315215468,1708944632775,-500.0,0.00019178,2]
[315215469,1708944632784,-1303.73,0.00019178,2]
[315215471,1708944632794,-685.61,0.00019178,2]
[315215473,1708944632806,-500.0,0.00019178,2]
[315215475,1708944632815,-500.0,0.00019178,2]
[315215477,1708944632824,-1398.47,0.00019178,2]
[315215478,1708944632834,-500.0,0.00019178,2]
[315215479,1708944632843,-501.19388928,0.00019178,2]
[315215481,1708944632852,-500.0,0.00019178,2]
[315215482,1708944632862,-500.0,0.00019178,2]
[315215483,1708944632871,-500.0,0.00019178,2]
[315215484,1708944632882,-500.0,0.00019178,2]
[315215485,1708944632893,-500.0,0.00019178,2]
[315215486,1708944632902,-502.15505867,0.00019178,2]
[315215487,1708944632911,-111.74196874,0.00019178,2]
[315215517,1708944638084,-1718.77128395,0.00017099,2]
[315215519,1708944638093,-388.25803126,0.00019178,2]
[315215521,1708944638103,-505.83665894,0.00019178,2]
[315215523,1708944638112,-500.0,0.00019178,2]
[315215525,1708944638121,-588.75636197,0.00019178,2]
[315215527,1708944638131,-1136.62,0.00019178,2]
[315215529,1708944638140,-500.0,0.00019178,2]
[315215531,1708944638149,-500.0,0.00019178,2]
[315215533,1708944638158,-500.0,0.00019178,2]
[315215534,1708944638168,-502.01865313,0.00019178,2]
[315215535,1708944638177,-500.0,0.00019178,2]
[315215536,1708944638186,-500.0,0.00019178,2]
[315215537,1708944638195,-500.0,0.00019178,2]
[315215538,1708944638204,-500.0,0.00019178,2]
[315215539,1708944638213,-500.89874379,0.00019178,2]
[315215541,1708944638222,-500.0,0.00019178,2]
[315215543,1708944638231,-500.0,0.00019178,2]
[315215545,1708944638240,-500.0,0.00019178,2]
[315215547,1708944638249,-500.0,0.00019178,2]
[315215549,1708944638258,-500.0,0.00019178,2]
[315215550,1708944638268,-500.0,0.00019178,2]
[315215552,1708944638277,-201.81516256,0.00019178,2]
[315215554,1708944638286,-1645.15,0.00019178,2]
[315215557,1708944638295,-500.0,0.00019178,2]
[315215558,1708944638305,-500.0,0.00019178,2]
[315215560,1708944638314,-613.2,0.00019178,2]
[315215563,1708944638323,-608.21516121,0.00019178,2]
[315215565,1708944638332,-500.0,0.00019178,2]
[315215567,1708944638342,-502.11011131,0.00019178,2]
[315215569,1708944638351,-500.0,0.00019178,2]
[315215571,1708944638360,-1531.16,0.00019178,2]
[315215572,1708944638369,-500.0,0.00019178,2]
[315215574,1708944638378,-500.0,0.00019178,2]
[315215576,1708944638387,-500.0,0.00019178,2]
[315215578,1708944638396,-500.0,0.00019178,2]
[315215580,1708944638405,-500.0,0.00019178,2]
[315215582,1708944638414,-1336.18,0.00019178,2]
[315215584,1708944638424,-500.0,0.00019178,2]
[315215586,1708944638433,-500.0,0.00019178,2]
[315215588,1708944638441,-500.0,0.00019178,2]
[315215590,1708944638450,-501.29954357,0.00019178,2]
[315215592,1708944638459,-500.0,0.00019178,2]
[315215594,1708944638469,-2438.08,0.00019178,2]
[315215596,1708944638478,-500.0,0.00019178,2]
[315215598,1708944638487,-500.0,0.00019178,2]
[315215599,1708944638496,-500.0,0.00019178,2]
[315215600,1708944638505,-500.0,0.00019178,2]
[315215601,1708944638515,-501.32910414,0.00019178,2]
[315215602,1708944638523,-387.37101494,0.00019178,2]
[315215603,1708944638534,-500.0,0.00019178,2]
[315215604,1708944638544,-500.0,0.00019178,2]
[315215605,1708944638553,-505.95058571,0.00019178,2]
[315215607,1708944638562,-500.0,0.00019178,2]
[315215608,1708944638571,-501.15891144,0.00019178,2]
[315215609,1708944638580,-500.0,0.00019178,2]
[315215610,1708944638589,-646.85521638,0.00019178,2]
[315215611,1708944638598,-500.0,0.00019178,2]
[315215612,1708944638607,-312.51592479,0.00019178,2]
[315215613,1708944638616,-500.0,0.00019178,2]
[315215614,1708944638625,-500.0,0.00019178,2]
[315215615,1708944638634,-500.0,0.00019178,2]
[315215616,1708944638644,-1138.08,0.00019178,2]
[315215617,1708944638653,-500.0,0.00019178,2]
[315215618,1708944638662,-239.92493776,0.00019178,2]
[315215619,1708944638671,-500.0,0.00019178,2]
[315215620,1708944638681,-835.0,0.00019178,2]
[315215621,1708944638692,-500.0,0.00019178,2]
[315215622,1708944638701,-500.0,0.00019178,2]
[315215623,1708944638710,-500.0,0.00019178,2]
[315215624,1708944638719,-20201.32,0.00019178,2]
[315215625,1708944638729,-500.0,0.00019178,2]
[315215626,1708944638738,-500.0,0.00019178,2]
[315215627,1708944638747,-500.0,0.00019178,2]
[315215628,1708944638756,-500.0,0.00019178,2]
[315215629,1708944638765,-500.0,0.00019178,2]
[315215630,1708944638775,-500.0,0.00019178,2]
[315215631,1708944638785,-501.00040851,0.00019178,2]
[315215632,1708944638795,-509.9265336,0.00019178,2]
[315215633,1708944638806,-500.0,0.00019178,2]
[315215634,1708944638815,-500.0,0.00019178,2]
[315215635,1708944638824,-544.80572393,0.00019178,2]
[315215636,1708944638833,-500.0,0.00019178,2]
[315215637,1708944638843,-500.0,0.00019178,2]
[315215638,1708944638852,-500.0,0.00019178,2]
[315215639,1708944638862,-500.0,0.00019178,2]
[315215640,1708944638870,-500.0,0.00019178,2]
[315215641,1708944638879,-1608.12,0.00019178,2]